[Event "XTX Markets London Masters 2024"]
[Site "London"]
[Date "2024.11.29"]
[Round "1.28"]
[White "Hanache, Kai"]
[Black "Wells, Peter K"]
[Result "1/2-1/2"]
[ECO "B31"]
[WhiteElo "2080"]
[BlackElo "2351"]
[Annotator "TA"]
[PlyCount "62"]
[EventDate "2024.11.28"]
[EventType "swiss"]
[EventCountry "ENG"]
[SourceTitle "playchess.com"]
[Source "ChessBase"]
[SourceQuality "1"]
[TimeControl "40/5400+30:1800+30"]

{[%evp 12,62,0,0,10,-9,4,-11,-13,-10,-7,-7,0,-8,-12,-10,0,-16,-8,-24,-2,-22,-10,-45,-40,-49,-34,-50,-45,-44,-45,-72,-45,-45,-42,-65,-54,-75,-63,-80,-70,-92,-50,-83,-52,-45,-54,-83,0,-71,0,-85,0]} 1. e4 {[%emt 0:00:14]} c5 {[%emt 0:10:43]} 2. Nf3 {[%emt 0:00:18]} Nc6 {[%emt 0:00:32]} 3. Bb5 {[%emt 0:00:09]} g6 {[%emt 0:00:54]} 4. O-O {[%emt 0:00:38]} Bg7 {[%emt 0:00:45]} 5. c3 {[%emt 0:00:10]} Nf6 {[%emt 0:01:41]} 6. e5 {[%emt 0:00:43]} Nd5 {[%emt 0:02:05]} 7. d4 {[%emt 0:00:48]} Nc7 {[%emt 0:08:03]} 8. Bxc6 {[%emt 0:02:05]} dxc6 {[%emt 0:00:32]} 9. h3 {[%emt 0:06:24]} cxd4 {[%emt 0:04:03] The position is equal.} 10. cxd4 {[%emt 0:00:08]} O-O {[%emt 0:00:45]} 11. Nc3 {[%emt 0:01:00]} b6 {[%emt 0:05:31]} 12. Qc2 {[%emt 0:02:07]} Bf5 {[%emt 0:15:34]} 13. Qe2 {[%emt 0:00:33]} Qd7 {[%emt 0:13:25]} 14. Rd1 {[%emt 0:02:37]} Rac8 {[%emt 0:03:07]} 15. Bf4 {[%emt 0:04:49]} Nd5 {[%emt 0:06:52]} 16. Bg3 {[%emt 0:01:09]} Rfd8 {[%emt 0:01:33]} 17. Rac1 {[%emt 0:01:58]} Bh6 {[%emt 0:04:48]} 18. Ra1 {[%emt 0:03:11]} Qb7 {[%emt 0:01:53]} 19. Nh2 {[%emt 0:06:11][%cal Bf3h2,Bh2g4,Bg4e3][%mdl 32]} Nxc3 {[%emt 0:03:55]} 20. bxc3 {[%emt 0:00:13]} c5 {[%emt 0:00:21]} 21. dxc5 {[%emt 0:00:42]} bxc5 {[%emt 0:02:29]} 22. Ng4 {[%emt 0:00:09]} Bg7 {[%emt 0:00:32]} 23. Ne3 {[%emt 0:00:52]} Be6 {[%emt 0:00:34]} 24. Qc2 {[%emt 0:06:33]} Qa6 {[%emt 0:03:06]} 25. a4 {[%emt 0:03:48]} h5 {[%emt 0:03:15]} 26. Bf4 {[%emt 0:04:35]} Qc6 {[%emt 0:01:02]} 27. Rab1 {[%emt 0:03:07]} Qc7 {[%emt 0:03:33]} 28. Qe4 {[%emt 0:01:00]} Qa5 {[%emt 0:00:03]} 29. Qc2 {[%emt 0:02:22]} Qc7 {[%emt 0:00:22]} 30. Qe4 $1 {[%emt 0:00:20]} Qa5 {[%emt 0:00:08]} 31. Qc2 $1 {[%emt 0:00:12]} Qc7 {[%emt 0:01:38] Weighted Error Value: White=0.11 (very precise) /Black=0.15 (very precise) .  Mistake:       	---       	Black=1      Inaccurate:     	White=4     	Black=3      OK:         	White=7     	Black=10     Best:        	---       	Black=1      Strong:       	White=2     	---} (31... Rxd1+ $17 32. Rxd1 Rd8) 1/2-1/2

[Event "XTX Markets London Masters 2024"]
[Site "London"]
[Date "2024.11.29"]
[Round "1.29"]
[White "Petrov, Vladimir Sergeev"]
[Black "Hill, Alistair"]
[Result "1/2-1/2"]
[ECO "B33"]
[WhiteElo "2349"]
[BlackElo "2076"]
[Annotator "TA"]
[PlyCount "83"]
[EventDate "2024.11.28"]
[EventType "swiss"]
[EventCountry "ENG"]
[SourceTitle "playchess.com"]
[Source "ChessBase"]
[SourceQuality "1"]
[TimeControl "40/5400+30:1800+30"]

{[%evp 28,83,11,2,2,2,7,3,3,4,4,3,7,5,0,0,5,0,0,0,0,0,0,0,0,0,0,0,0,0,0,0,0,0,0,0,0,0,0,0,0,0,0,0,0,0,0,0,0,0,0,0,0,0,0,0,0,0]} 1. e4 {[%emt 0:00:02]} c5 {[%emt 0:04:44]} 2. Nf3 {[%emt 0:00:06]} Nc6 {[%emt 0:00:03]} 3. d4 {[%emt 0:00:06]} cxd4 {[%emt 0:00:09]} 4. Nxd4 {[%emt 0:00:05]} Nf6 {[%emt 0:00:07]} 5. Nc3 {[%emt 0:00:07]} e5 {[%emt 0:00:04]} 6. Ndb5 {[%emt 0:00:10]} d6 {[%emt 0:00:05]} 7. Bg5 {[%emt 0:00:15]} a6 {[%emt 0:00:06]} 8. Na3 {[%emt 0:00:04]} b5 {[%emt 0:00:04]} 9. Nd5 {[%emt 0:00:07]} Be7 {[%emt 0:00:05]} 10. Bxf6 {[%emt 0:00:08]} Bxf6 {[%emt 0:00:04]} 11. c3 {[%emt 0:00:08]} Bg5 {[%emt 0:01:29]} 12. Nc2 {[%emt 0:00:16]} Rb8 {[%emt 0:00:53]} 13. a4 {[%emt 0:02:14]} bxa4 {[%emt 0:00:08]} 14. Ncb4 {[%emt 0:00:05]} Nxb4 {[%emt 0:00:40]} 15. Nxb4 {[%emt 0:00:28]} Bd7 $1 {[%emt 0:01:29] Prevents Nc6.} 16. Bxa6 {[%emt 0:06:41][%cal Oe1g1]} Qa5 {[%emt 0:00:41]} 17. Qxd6 {[%emt 0:19:44]} Rb6 {[%emt 0:01:55]} 18. Qd3 {[%emt 0:04:44]} Be6 {[%emt 0:01:07] ...Be7 is the strong threat. A strong pair of Bishops.} 19. O-O {[%emt 0:11:39]} O-O {[%emt 0:03:25]} 20. Bc4 {[%emt 0:20:57]} Rd8 {[%emt 0:01:14]} 21. Bd5 {[%emt 0:00:14]} Bxd5 $1 {[%emt 0:11:11]} 22. exd5 {[%emt 0:00:35] Qf5 would now be deadly.} Be7 $1 {[%emt 0:00:35]} 23. Qd1 {[%emt 0:09:00]} ({Avoid the trap} 23. Nc6 $2 Rxc6 (23... Rxd5 $2 {too greedy.} 24. Nxe7+ Kf8 25. Nxd5 $18) 24. g3 Rcd6 $19 (24... Rxd5 $2 25. Rxa4 Rxd3 26. Rxa5 $19) (24... Qxd5 $2 25. Qxd5 Rxd5 26. Rxa4 $19)) 23... Bxb4 {[%emt 0:02:06]} 24. Rxa4 $1 {[%emt 0:00:08]} Qxd5 {[%emt 0:00:34]} 25. Qxd5 {[%emt 0:00:17]} Rxd5 {[%emt 0:00:05]} 26. Rxb4 {[%emt 0:01:30]} Rxb4 {[%emt 0:00:10]} 27. cxb4 $11 {[%emt 0:00:05][%mdl 4096] Endgame KR-KR. White is a pawn up.} Kf8 {[%emt 0:00:37]} 28. Rb1 {[%emt 0:09:43]} Ke7 {[%emt 0:00:17]} 29. Kf1 {[%emt 0:00:08]} Rb5 {[%emt 0:00:22]} 30. Ke2 {[%emt 0:00:46]} Rxb4 {[%emt 0:00:05]} 31. Kd3 {[%emt 0:00:42]} Kd6 {[%emt 0:21:22]} 32. Kc3 {[%emt 0:00:06]} Rf4 {[%emt 0:04:50]} 33. Rd1+ {[%emt 0:00:18]} Kc5 {[%emt 0:00:56]} 34. f3 {[%emt 0:02:32]} Rc4+ {[%emt 0:02:38]} 35. Kd3 {[%emt 0:03:05]} Rd4+ {[%emt 0:12:31]} 36. Ke2 {[%emt 0:00:11]} Rb4 {[%emt 0:00:05]} 37. Rd2 {[%emt 0:02:09]} f5 {[%emt 0:05:10]} 38. h3 {[%emt 0:03:47]} h5 {[%emt 0:01:37]} 39. Kd3 {[%emt 0:01:12]} g5 {[%emt 0:02:40]} 40. Kc3 {[%emt 0:03:13]} Rc4+ {[%emt 0:00:05]} 41. Kb3 {[%emt 0:31:28]} Rb4+ {[%emt 0:30:06]} 42. Kc3 {[%emt 0:00:56]} 1/2-1/2

[Event "XTX Markets London Masters 2024"]
[Site "London"]
[Date "2024.11.29"]
[Round "1.30"]
[White "Rushbrooke, Remy"]
[Black "Bates, Richard A"]
[Result "0-1"]
[ECO "E67"]
[WhiteElo "2074"]
[BlackElo "2315"]
[Annotator "RC"]
[PlyCount "62"]
[EventDate "2024.11.28"]
[EventType "swiss"]
[EventCountry "ENG"]
[SourceTitle "playchess.com"]
[Source "ChessBase"]
[SourceQuality "1"]
[TimeControl "40/5400+30:1800+30"]

1. Nf3 {[%emt 0:00:04]} Nf6 {[%emt 0:01:00]} 2. g3 {[%emt 0:00:10]} g6 {[%emt 0:00:43]} 3. Bg2 {[%emt 0:00:06]} Bg7 {[%emt 0:00:05]} 4. d4 {[%emt 0:00:10]} O-O {[%emt 0:02:16]} 5. O-O {[%emt 0:02:25]} d6 {[%emt 0:00:16]} 6. c4 {[%emt 0:00:04]} Nbd7 {[%emt 0:00:53]} 7. Nc3 {[%emt 0:00:05]} e5 {[%emt 0:00:21]} 8. dxe5 {[%emt 0:00:11]} dxe5 {[%emt 0:00:28]} 9. Qc2 {[%emt 0:06:30]} c6 {[%emt 0:09:14]} 10. h3 {[%emt 0:02:32]} Qe7 {[%emt 0:06:45]} 11. Rb1 {[%emt 0:08:05]} Nc5 {[%emt 0:02:03]} 12. Be3 {[%emt 0:27:34]} Bf5 {[%emt 0:03:31]} 13. Bxc5 {[%emt 0:00:04]} Qxc5 {[%emt 0:00:06]} 14. e4 {[%emt 0:00:02]} Be6 {[%emt 0:07:00]} 15. b4 {[%emt 0:03:49]} Qe7 {[%emt 0:09:19]} 16. Nxe5 {[%emt 0:07:01]} Nh5 {[%emt 0:11:32]} 17. Ng4 {[%emt 0:03:23]} f5 {[%emt 0:06:06]} 18. exf5 {[%emt 0:05:35]} gxf5 {[%emt 0:00:50]} 19. Ne3 {[%emt 0:14:01]} f4 {[%emt 0:01:01]} 20. gxf4 {[%emt 0:02:05]} Nxf4 {[%emt 0:00:33]} 21. Ne2 {[%emt 0:08:29]} Nxh3+ {[%emt 0:04:17]} 22. Bxh3 {[%emt 0:00:02]} Bxh3 {[%emt 0:00:13]} 23. Rfe1 {[%emt 0:01:41]} Rxf2 {[%emt 0:07:04]} 24. Kxf2 {[%emt 0:00:02]} Rf8+ {[%emt 0:00:25]} 25. Nf4 {[%emt 0:00:07]} Rxf4+ {[%emt 0:00:12]} 26. Kg1 {[%emt 0:01:35]} Qg5+ {[%emt 0:06:55]} 27. Kh1 {[%emt 0:04:18]} Rh4 {[%emt 0:00:36]} 28. Qh2 {[%emt 0:00:26]} Be5 {[%emt 0:02:53]} 29. Rb2 {[%emt 0:02:27]} Bxh2 {[%emt 0:00:37]} 30. Rxh2 {[%emt 0:00:42]} Qe5 {[%emt 0:00:41]} 31. Ng2 {[%emt 0:01:02]} Bxg2+ {[%emt 0:00:16]} 0-1

[Event "XTX Markets London Masters 2024"]
[Site "London"]
[Date "2024.11.29"]
[Round "1.31"]
[White "Fava, Lorenzo"]
[Black "Salem, Ihab"]
[Result "1/2-1/2"]
[ECO "E93"]
[WhiteElo "2300"]
[BlackElo "2071"]
[Annotator "RC"]
[PlyCount "151"]
[EventDate "2024.11.28"]
[EventType "swiss"]
[EventCountry "ENG"]
[SourceTitle "playchess.com"]
[Source "ChessBase"]
[SourceQuality "1"]
[TimeControl "40/5400+30:1800+30"]

1. c4 {[%emt 0:03:02]} Nf6 {[%emt 0:00:09]} 2. Nf3 {[%emt 0:02:20]} g6 {[%emt 0:00:40]} 3. Nc3 {[%emt 0:01:41]} Bg7 {[%emt 0:01:11]} 4. e4 {[%emt 0:00:14]} d6 {[%emt 0:00:36]} 5. d4 {[%emt 0:00:40]} O-O {[%emt 0:00:12]} 6. Be2 {[%emt 0:01:01]} e5 {[%emt 0:00:55]} 7. d5 {[%emt 0:00:31]} Nbd7 {[%emt 0:04:16]} 8. h3 {[%emt 0:01:44]} Nc5 {[%emt 0:01:06]} 9. Qc2 {[%emt 0:00:42]} a5 {[%emt 0:00:09]} 10. Be3 {[%emt 0:01:15]} b6 {[%emt 0:01:16]} 11. g4 {[%emt 0:03:34]} Bd7 {[%emt 0:03:19]} 12. O-O-O {[%emt 0:17:25]} a4 {[%emt 0:07:10]} 13. Rdg1 {[%emt 0:03:16]} c6 {[%emt 0:00:34]} 14. Nd2 {[%emt 0:12:39]} cxd5 {[%emt 0:04:28]} 15. exd5 {[%emt 0:07:52]} a3 {[%emt 0:01:07]} 16. b3 {[%emt 0:00:37]} e4 {[%emt 0:03:06]} 17. g5 {[%emt 0:11:59]} Nd3+ {[%emt 0:01:01]} 18. Kb1 {[%emt 0:01:30]} Nb4 {[%emt 0:12:39]} 19. Qd1 {[%emt 0:03:07]} Nh5 {[%emt 0:04:18]} 20. Ndxe4 {[%emt 0:04:59]} Bf5 {[%emt 0:01:13]} 21. Bd4 {[%emt 0:00:58]} Qe7 {[%emt 0:05:20]} 22. f3 {[%emt 0:04:56]} Nf4 {[%emt 0:03:29]} 23. Bxg7 {[%emt 0:01:09]} Kxg7 {[%emt 0:03:44]} 24. Qd4+ {[%emt 0:00:33]} Qe5 {[%emt 0:01:19]} 25. Qxe5+ {[%emt 0:02:59]} dxe5 {[%emt 0:00:09]} 26. h4 {[%emt 0:01:46]} b5 {[%emt 0:01:10]} 27. Re1 {[%emt 0:04:11]} Nxe2 {[%emt 0:04:27]} 28. Rxe2 {[%emt 0:00:02]} bxc4 {[%emt 0:00:09]} 29. bxc4 {[%emt 0:00:04]} Rfc8 {[%emt 0:00:34]} 30. Nb5 {[%emt 0:02:12]} Rxc4 {[%emt 0:03:35]} 31. Nbd6 {[%emt 0:00:39]} Nxd5 {[%emt 0:09:24]} 32. Nxc4 {[%emt 0:02:23]} Nc3+ {[%emt 0:00:06]} 33. Kc2 {[%emt 0:00:51]} Nxe2 {[%emt 0:00:10]} 34. Kd2 {[%emt 0:02:02]} Nd4 {[%emt 0:01:28]} 35. Ke3 {[%emt 0:01:44]} Be6 {[%emt 0:01:41]} 36. Nxe5 {[%emt 0:00:41]} Nf5+ {[%emt 0:00:11]} 37. Kf4 {[%emt 0:00:31]} Bxa2 {[%emt 0:01:02]} 38. h5 {[%emt 0:00:58]} h6 {[%emt 0:00:36]} 39. gxh6+ {[%emt 0:00:32]} Nxh6 {[%emt 0:00:18]} 40. hxg6 {[%emt 0:00:23]} fxg6 {[%emt 0:00:13]} 41. Ra1 {[%emt 0:12:16]} Be6 {[%emt 0:03:58]} 42. Nc3 {[%emt 0:02:50]} Nf5 {[%emt 0:03:43]} 43. Rg1 {[%emt 0:03:46]} Ne7 {[%emt 0:01:23]} 44. Ke4 {[%emt 0:01:22]} a2 {[%emt 0:00:38]} 45. Ra1 {[%emt 0:00:02]} Ra3 {[%emt 0:00:31]} 46. Kd4 {[%emt 0:04:24]} Nf5+ {[%emt 0:04:29]} 47. Kd3 {[%emt 0:00:01]} Nd6 {[%emt 0:00:18]} 48. Kc2 {[%emt 0:03:43]} Kf6 {[%emt 0:00:44]} 49. Nd3 {[%emt 0:00:29]} Bb3+ {[%emt 0:03:15]} 50. Kd2 {[%emt 0:02:27]} Nc4+ {[%emt 0:01:26]} 51. Ke2 {[%emt 0:00:06]} Bc2 {[%emt 0:02:52]} 52. Nb4 {[%emt 0:00:20]} Bb3 {[%emt 0:04:51]} 53. Nd3 {[%emt 0:04:03]} Nb6 {[%emt 0:03:20]} 54. Ne4+ {[%emt 0:01:08]} Ke7 {[%emt 0:01:01]} 55. Nc1 {[%emt 0:00:43]} Bc4+ {[%emt 0:00:18]} 56. Kf2 {[%emt 0:00:32]} Nd7 {[%emt 0:04:04]} 57. Ne2 {[%emt 0:00:21]} Ne5 {[%emt 0:00:32]} 58. N2c3 {[%emt 0:00:31]} Nd3+ {[%emt 0:00:37]} 59. Ke3 {[%emt 0:00:12]} Nb4 {[%emt 0:02:21]} 60. Kd2 {[%emt 0:00:02]} Rb3 {[%emt 0:00:37]} 61. Kc1 {[%emt 0:01:22]} Nd3+ {[%emt 0:01:49]} 62. Kd1 {[%emt 0:00:31]} Rb2 {[%emt 0:00:32]} 63. Nd2 {[%emt 0:00:26]} Ke6 {[%emt 0:00:33]} 64. Nxc4 {[%emt 0:00:24]} Nf2+ {[%emt 0:00:50]} 65. Kc1 {[%emt 0:00:22]} Nd3+ {[%emt 0:00:06]} 66. Kd1 {[%emt 0:00:01]} Nf2+ {[%emt 0:00:07]} 67. Ke1 {[%emt 0:01:02]} Nd3+ {[%emt 0:00:48]} 68. Kf1 {[%emt 0:00:37]} Rc2 {[%emt 0:00:26]} 69. Rxa2 {[%emt 0:00:19]} Rxc3 {[%emt 0:00:09]} 70. Ra6+ {[%emt 0:00:25]} Kf5 {[%emt 0:00:57]} 71. Ne3+ {[%emt 0:00:14]} Kg5 {[%emt 0:00:24]} 72. Ke2 {[%emt 0:01:10]} Nf4+ {[%emt 0:00:13]} 73. Kf2 {[%emt 0:00:02]} Nh3+ {[%emt 0:01:06]} 74. Ke2 {[%emt 0:00:02]} Nf4+ {[%emt 0:00:06]} 75. Kf2 {[%emt 0:00:21]} Nh3+ {[%emt 0:01:00]} 76. Ke2 {[%emt 0:00:24]} 1/2-1/2

[Event "XTX Markets London Masters 2024"]
[Site "London"]
[Date "2024.11.29"]
[Round "1.32"]
[White "Franco, Gaston"]
[Black "Badacsonyi, Stanley"]
[Result "0-1"]
[ECO "C06"]
[WhiteElo "2070"]
[BlackElo "2298"]
[Annotator "RC"]
[PlyCount "94"]
[EventDate "2024.11.28"]
[EventType "swiss"]
[EventCountry "ENG"]
[SourceTitle "playchess.com"]
[Source "ChessBase"]
[SourceQuality "1"]
[TimeControl "40/5400+30:1800+30"]

1. e4 {[%emt 0:00:03]} e6 {[%emt 0:00:04]} 2. d4 {[%emt 0:00:09]} d5 {[%emt 0:00:04]} 3. Nd2 {[%emt 0:00:06]} Nf6 {[%emt 0:00:18]} 4. e5 {[%emt 0:00:10]} Nfd7 {[%emt 0:00:04]} 5. Bd3 {[%emt 0:00:07]} c5 {[%emt 0:00:05]} 6. c3 {[%emt 0:00:05]} Nc6 {[%emt 0:00:04]} 7. Ne2 {[%emt 0:00:24]} cxd4 {[%emt 0:00:04]} 8. cxd4 {[%emt 0:00:05]} f6 {[%emt 0:00:03]} 9. exf6 {[%emt 0:00:38]} Nxf6 {[%emt 0:00:06]} 10. O-O {[%emt 0:01:08]} Bd6 {[%emt 0:00:04]} 11. Nf3 {[%emt 0:00:37]} O-O {[%emt 0:00:06]} 12. Bg5 {[%emt 0:04:38]} Qb6 {[%emt 0:00:49]} 13. Nc3 {[%emt 0:15:24]} Bd7 {[%emt 0:09:41]} 14. Re1 {[%emt 0:04:41]} Rac8 {[%emt 0:10:35]} 15. Ne5 {[%emt 0:14:52]} Be8 {[%emt 0:00:20]} 16. Bxf6 {[%emt 0:01:20]} Rxf6 {[%emt 0:00:21]} 17. Ng4 {[%emt 0:03:03]} Rf8 {[%emt 0:13:00]} 18. Rxe6 {[%emt 0:03:43]} Nxd4 {[%emt 0:02:52]} 19. Re3 {[%emt 0:30:39]} Qxb2 {[%emt 0:20:57]} 20. Rb1 {[%emt 0:03:45]} Qa3 {[%emt 0:01:39]} 21. Bxh7+ {[%emt 0:03:12]} Kxh7 {[%emt 0:00:35]} 22. Qxd4 {[%emt 0:01:05]} Bg6 {[%emt 0:12:41]} 23. Rh3+ {[%emt 0:08:51]} Kg8 {[%emt 0:00:12]} 24. Qxd5+ {[%emt 0:00:07]} Rf7 {[%emt 0:00:14]} 25. Re1 {[%emt 0:00:14]} Qc5 {[%emt 0:02:37]} 26. Rhe3 {[%emt 0:02:07]} Qxd5 {[%emt 0:00:53]} 27. Nxd5 {[%emt 0:00:01]} Rc5 {[%emt 0:01:14]} 28. Re8+ {[%emt 0:01:07]} Kh7 {[%emt 0:00:15]} 29. Nge3 {[%emt 0:00:54]} Ra5 {[%emt 0:02:19]} 30. Rd8 {[%emt 0:00:26]} Bc5 {[%emt 0:00:20]} 31. Re2 {[%emt 0:00:56]} Ra3 {[%emt 0:00:44]} 32. g3 {[%emt 0:00:43]} Bb1 {[%emt 0:01:11]} 33. Nf4 {[%emt 0:00:54]} Rxa2 {[%emt 0:00:17]} 34. Re1 {[%emt 0:00:40]} Be4 {[%emt 0:00:49]} 35. Ng4 {[%emt 0:00:14]} Bc6 {[%emt 0:00:13]} 36. Nd3 {[%emt 0:00:09]} Bb6 {[%emt 0:00:13]} 37. Rd6 {[%emt 0:00:19]} Bb5 {[%emt 0:00:11]} 38. Re5 {[%emt 0:00:26]} Bxd3 {[%emt 0:00:13]} 39. Rh5+ {[%emt 0:00:05]} Kg8 {[%emt 0:00:05]} 40. Rxd3 {[%emt 0:00:05]} Bxf2+ {[%emt 0:00:17]} 41. Nxf2 {[%emt 0:30:07]} Rfxf2 {[%emt 0:30:11]} 42. Rd8+ {[%emt 0:00:19]} Kf7 {[%emt 0:00:11]} 43. Rd7+ {[%emt 0:01:08]} Kg6 {[%emt 0:00:30]} 44. Rb5 {[%emt 0:00:11]} Rg2+ {[%emt 0:00:30]} 45. Kh1 {[%emt 0:00:12]} Rxh2+ {[%emt 0:00:05]} 46. Kg1 {[%emt 0:00:03]} Rhc2 {[%emt 0:00:23]} 47. Rd6+ {[%emt 0:01:54]} Kh7 {[%emt 0:00:19]} 0-1

[Event "XTX Markets London Masters 2024"]
[Site "London"]
[Date "2024.11.29"]
[Round "1.33"]
[White "Haydon, David L"]
[Black "Tashkinova, Sofiia"]
[Result "1/2-1/2"]
[ECO "E11"]
[WhiteElo "2294"]
[BlackElo "2066"]
[Annotator "RC"]
[PlyCount "172"]
[EventDate "2024.11.28"]
[EventType "swiss"]
[EventCountry "ENG"]
[SourceTitle "playchess.com"]
[Source "ChessBase"]
[SourceQuality "1"]
[TimeControl "40/5400+30:1800+30"]

1. d4 {[%emt 0:00:03]} Nf6 {[%emt 0:11:39]} 2. c4 {[%emt 0:00:09]} e6 {[%emt 0:00:53]} 3. Nf3 {[%emt 0:00:11]} Bb4+ {[%emt 0:00:49]} 4. Bd2 {[%emt 0:00:57]} Qe7 {[%emt 0:00:34]} 5. Nc3 {[%emt 0:07:55]} b6 {[%emt 0:03:36]} 6. a3 {[%emt 0:08:16]} Bxc3 {[%emt 0:00:29]} 7. Bxc3 {[%emt 0:00:10]} Bb7 {[%emt 0:00:38]} 8. Nd2 {[%emt 0:04:23]} d6 {[%emt 0:02:51]} 9. Qc2 {[%emt 0:02:54]} e5 {[%emt 0:03:27]} 10. d5 {[%emt 0:03:25]} a5 {[%emt 0:02:04]} 11. b3 {[%emt 0:03:13]} O-O {[%emt 0:03:35]} 12. e4 {[%emt 0:02:46]} Bc8 {[%emt 0:03:12]} 13. Be2 {[%emt 0:01:59]} h6 {[%emt 0:05:02]} 14. O-O {[%emt 0:03:00]} Nh7 {[%emt 0:03:03]} 15. Bd3 {[%emt 0:02:52]} Nd7 {[%emt 0:02:24]} 16. b4 {[%emt 0:11:33]} a4 {[%emt 0:05:07]} 17. Rae1 {[%emt 0:01:39]} Ndf6 {[%emt 0:05:02]} 18. Qd1 {[%emt 0:04:01]} g6 {[%emt 0:08:05]} 19. f4 {[%emt 0:05:48]} Nh5 {[%emt 0:02:56]} 20. fxe5 {[%emt 0:00:51]} dxe5 {[%emt 0:00:34]} 21. Nf3 {[%emt 0:00:37]} f6 {[%emt 0:01:26]} 22. Nh4 {[%emt 0:02:55]} Qe8 {[%emt 0:03:01]} 23. g3 {[%emt 0:04:38]} Ng5 {[%emt 0:02:52]} 24. Re3 {[%emt 0:04:40]} Ng7 {[%emt 0:03:13]} 25. b5 {[%emt 0:03:28]} Kh7 {[%emt 0:02:37]} 26. Bb4 {[%emt 0:02:02]} Rf7 {[%emt 0:00:24]} 27. Nf3 {[%emt 0:00:19]} Bh3 {[%emt 0:03:06]} 28. Rf2 {[%emt 0:00:56]} Qd7 {[%emt 0:00:56]} 29. Nxg5+ {[%emt 0:00:10]} hxg5 {[%emt 0:00:08]} 30. Be2 {[%emt 0:01:32]} g4 {[%emt 0:06:33]} 31. Bf1 {[%emt 0:01:53]} Bxf1 {[%emt 0:01:43]} 32. Qxf1 {[%emt 0:00:27]} Ne8 {[%emt 0:00:26]} 33. Re1 {[%emt 0:02:01]} Kg7 {[%emt 0:01:12]} 34. Qe2 {[%emt 0:00:39]} Nd6 {[%emt 0:13:53]} 35. Qc2 {[%emt 0:01:46]} Nb7 {[%emt 0:00:00]} 36. Ref1 {[%emt 0:00:53]} Nd6 {[%emt 0:00:00]} 37. Kg2 {[%emt 0:01:39]} Qc8 {[%emt 0:00:00]} 38. Rh1 {[%emt 0:00:14]} Qd7 {[%emt 0:00:00]} 39. Rhf1 {[%emt 0:02:17]} Qc8 {[%emt 0:00:00]} 40. Qd3 {[%emt 0:01:16]} Qd7 {[%emt 0:00:00]} 41. Bd2 {[%emt 0:30:45]} Rh8 {[%emt 0:29:32]} 42. Be3 {[%emt 0:00:30]} f5 {[%emt 0:00:00]} 43. exf5 {[%emt 0:00:00]} gxf5 {[%emt 0:00:00]} 44. Bc1 {[%emt 0:00:00]} Ne4 {[%emt 0:00:00]} 45. Re2 {[%emt 0:00:00]} Rh5 {[%emt 0:00:00]} 46. Bb2 {[%emt 0:00:00]} Re7 {[%emt 0:00:00]} 47. Qc2 {[%emt 0:00:00]} Qd6 {[%emt 0:00:00]} 48. Qxa4 {[%emt 0:00:00]} Qh6 {[%emt 0:00:00]} 49. Rh1 {[%emt 0:00:00]} Kf6 {[%emt 0:03:01]} 50. Qb3 {[%emt 0:00:00]} Rh3 {[%emt 0:00:58]} 51. Bc1 {[%emt 0:00:00]} f4 {[%emt 0:01:07]} 52. Rc2 {[%emt 0:00:00]} f3+ {[%emt 0:00:52]} 53. Kg1 {[%emt 0:00:00]} Qh5 {[%emt 0:00:21]} 54. d6 {[%emt 0:02:34]} cxd6 {[%emt 0:00:09]} 55. Qd3 {[%emt 0:00:22]} Qf5 {[%emt 0:00:58]} 56. Be3 {[%emt 0:00:31]} Rb7 {[%emt 0:02:01]} 57. Qd5 {[%emt 0:00:21]} Rb8 {[%emt 0:00:13]} 58. a4 {[%emt 0:00:53]} Kg7 {[%emt 0:01:36]} 59. Rb2 {[%emt 0:00:46]} Rf8 {[%emt 0:00:55]} 60. Bf2 {[%emt 0:01:02]} Rf7 {[%emt 0:00:25]} 61. a5 {[%emt 0:00:29]} bxa5 {[%emt 0:00:34]} 62. b6 {[%emt 0:00:02]} Nc3 {[%emt 0:00:25]} 63. Qxa5 {[%emt 0:01:06]} Ne2+ {[%emt 0:00:10]} 64. Kf1 {[%emt 0:00:02]} Qd3 {[%emt 0:00:09]} 65. Ke1 {[%emt 0:00:54]} Nc3 {[%emt 0:00:25]} 66. Qa1 {[%emt 0:00:45]} Rh8 {[%emt 0:01:00]} 67. Qc1 {[%emt 0:00:56]} Qe4+ {[%emt 0:00:50]} 68. Qe3 {[%emt 0:00:27]} Ra8 {[%emt 0:00:42]} 69. Kd2 {[%emt 0:00:35]} Qxe3+ {[%emt 0:00:18]} 70. Bxe3 {[%emt 0:01:38]} Ne4+ {[%emt 0:00:38]} 71. Kd3 {[%emt 0:00:16]} Nc5+ {[%emt 0:00:33]} 72. Bxc5 {[%emt 0:00:09]} dxc5 {[%emt 0:00:04]} 73. b7 {[%emt 0:00:12]} Rb8 {[%emt 0:00:05]} 74. Rhb1 {[%emt 0:00:25]} Rd7+ {[%emt 0:01:07]} 75. Ke3 {[%emt 0:00:06]} Kf6 {[%emt 0:00:27]} 76. Rb6+ {[%emt 0:00:40]} Kf5 {[%emt 0:00:10]} 77. R6b5 {[%emt 0:01:39]} Rc7 {[%emt 0:00:49]} 78. R1b2 {[%emt 0:01:58]} Rd7 {[%emt 0:00:20]} 79. Rb6 {[%emt 0:00:56]} Rc7 {[%emt 0:00:24]} 80. R6b5 {[%emt 0:04:24]} Rd7 {[%emt 0:00:21]} 81. Rb6 {[%emt 0:01:38]} Rh7 {[%emt 0:00:21]} 82. R6b5 {[%emt 0:00:30]} Rc7 {[%emt 0:00:09]} 83. Kd3 {[%emt 0:00:41]} Rd7+ {[%emt 0:00:09]} 84. Ke3 {[%emt 0:00:19]} Rc7 {[%emt 0:00:18]} 85. R5b3 {[%emt 0:00:33]} Rd7 {[%emt 0:00:14]} 86. Rb5 {[%emt 0:00:35]} Rc7 {[%emt 0:00:46]} 1/2-1/2